bitfinex-derivatives/quotes_SOLF0:USTF0_20250911
["timestamp","ask_amount","ask_price","bid_price","bid_amount"]
[1757583084923,7.49,224.41,224.37,3.7249541]
[1757583085527,1.63464579,224.42,224.37,3.7249541]
[1757583085719,7.49,224.41,224.37,3.7249541]
[1757583085918,1.63464579,224.42,224.37,3.7249541]
[1757583086526,7.49,224.41,224.37,3.7249541]
[1757583086918,1.63464579,224.42,224.37,3.7249541]
[1757583087227,1.63464579,224.42,224.38,3.77592837]
[1757583087419,7.32,224.41,224.38,3.69592837]
[1757583087617,7.32,224.41,224.37,3.7249541]
[1757583088628,1.66600671,224.44,224.38,0.07]
[1757583088927,1.66600671,224.44,224.38,3.76592837]
[1757583090329,0.03136092,224.44,224.38,3.76592837]
[1757583091733,7.32,224.43,224.38,3.69592837]
[1757583092129,0.03136092,224.44,224.38,3.69592837]
[1757583093431,7.32,224.43,224.38,3.69592837]
[1757583093633,0.03136092,224.44,224.38,3.69592837]
[1757583094034,0.03136092,224.44,224.37,3.7249541]
[1757583094035,7.32,224.43,224.37,3.7249541]
[1757583095532,7.32,224.43,224.38,3.69592837]
[1757583095727,7.32,224.43,224.37,0.02902573]
[1757583101642,2.55530474,224.4,224.37,0.02902573]
[1757583102344,7.32,224.42,224.37,0.02902573]
[1757583106240,2.55530474,224.39,224.37,0.02902573]
[1757583106449,7.32,224.38,224.37,0.02902573]
[1757583110047,7.32,224.38,224.31,3.69592837]
[1757583110048,10.31530474,224.38,224.31,3.69592837]
[1757583110249,9.87530474,224.38,224.27,3.69592837]
[1757583111448,7.32,224.34,224.27,3.69592837]
[1757583112251,7.32,224.34,224.26,3.69592837]
[1757583112843,0.02975987,224.35,224.28,3.69592837]
[1757583113052,0.02975987,224.35,224.3,0.1]
[1757583113250,0.02975987,224.35,224.29,3.79592837]
[1757583114448,18.34759016,224.5,224.29,3.79592837]
[1757583114449,4.99759016,224.56,224.35,0.07]
[1757583114652,7.32,224.56,224.47,3.69346872]
[1757583114852,7.32,224.56,224.49,0.07]
[1757583116551,7.32,224.56,224.49,3.76346872]
[1757583117252,7.32,224.56,224.49,0.07]
[1757583117453,7.17,224.6,224.49,0.07]
[1757583123755,7.17,224.6,224.5,0.06]
[1757583124145,7.17,224.65,224.51,0.06]
[1757583124349,7.17,224.65,224.51,3.75346872]
[1757583124550,7.17,224.65,224.52,0.06]
[1757583127854,2.55530474,224.64,224.5,11.8]
[1757583128157,7.17,224.59,224.46,3.69346872]
[1757583128360,7.17,224.59,224.46,14.64]
[1757583128853,2.55530474,224.6,224.46,14.64]
[1757583129057,7.17,224.59,224.45,0.06]
[1757583129257,7.17,224.53,224.41,8.99346872]
[1757583129461,7.17,224.53,224.41,5.3]
[1757583131555,7.17,224.53,224.42,0.06]
[1757583138158,7.17,224.53,224.42,3.75346872]
[1757583138466,7.17,224.53,224.43,99.56]
[1757583140664,7.17,224.59,224.44,0.06]
[1757583140858,7.17,224.59,224.45,0.06]
[1757583141972,7.17,224.59,224.45,3.69346872]
[1757583142172,7.17,224.59,224.48,0.06]
[1757583142965,7.17,224.64,224.48,0.06]
[1757583143166,7.17,224.64,224.49,3.75346872]
[1757583143364,7.17,224.64,224.47,2.55530474]
[1757583143365,7.17,224.64,224.51,0.06]
[1757583143572,7.17,224.66,224.51,0.06]
[1757583143778,2.55530474,224.67,224.52,51.22]
[1757583144070,7.17,224.66,224.52,51.22]
[1757583144665,80.8284883,224.72,224.52,51.22]
[1757583144872,7.17,224.65,224.52,51.22]
[1757583145071,7.17,224.65,224.53,0.06]
[1757583145774,7.17,224.65,224.57,0.0325557]
[1757583145967,0.02899095,224.61,224.57,0.0325557]
[1757583146169,7.17,224.6,224.57,0.0325557]
[1757583146475,7.17,224.6,224.53,0.06]
[1757583146676,7.17,224.68,224.53,0.06]
[1757583147873,7.17,224.68,224.54,0.07]
[1757583148467,7.17,224.68,224.54,3.69346872]
[1757583148777,7.36,224.71,224.55,117.00346872]
[1757583148966,7.36,224.71,224.55,113.24]
[1757583149167,0.0327553,224.63,224.6,0.07]
[1757583149578,7.36,224.67,224.6,0.07]
[1757583154173,8.99173232,224.67,224.57,3.69346872]
[1757583154379,7.36,224.71,224.56,113.29]
[1757583154579,7.36,224.66,224.56,113.29]
[1757583155284,7.36,224.66,224.56,116.98346872]
[1757583155784,7.36,224.66,224.56,116.91346872]
[1757583155984,7.36,224.66,224.57,0.07]
[1757583157284,7.36,224.66,224.57,3.76346872]
[1757583158181,7.36,224.66,224.58,3.69346872]
[1757583158583,7.36,224.66,224.6,3.69346872]
[1757583158780,7.36,224.66,224.62,0.07]
[1757583159290,7.36,224.89,224.66,0.07]
[1757583159589,7.36,224.86,224.79,3.66059129]
[1757583160188,7.36,224.86,224.78,116.84059129]
[1757583160590,7.36,224.86,224.78,113.18]
[1757583163094,7.36,224.86,224.75,0.07]
[1757583163289,7.36,224.86,224.76,57.32]
[1757583164184,7.36,224.86,224.76,108.14]
[1757583164582,8.99173232,224.83,224.76,108.14]
[1757583165996,8.99173232,224.83,224.76,113.14]
[1757583166196,7.36,224.82,224.76,113.14]
[1757583166693,7.36,224.82,224.71,0.07]
[1757583166694,7.36,224.82,224.72,13.57949558]
[1757583166997,7.36,224.82,224.73,58.3]
[1757583170902,1.63173232,224.77,224.71,100.39]
[1757583171203,1.63173232,224.74,224.67,0.07]
[1757583173197,7.36,224.76,224.67,0.07]
[1757583173499,1.63173232,224.8,224.67,0.07]
[1757583174904,7.36,224.79,224.67,0.07]
[1757583175103,8.99173232,224.75,224.68,55.16]
[1757583176197,8.99173232,224.75,224.69,0.03295058]
[1757583176395,0.0331302,224.74,224.69,0.10295058]
[1757583176599,7.3931302,224.74,224.69,0.10295058]
[1757583176802,7.36,224.73,224.69,0.03295058]
[1757583177106,7.36,224.71,224.69,0.03295058]
[1757583177307,1.63173232,224.72,224.69,0.03295058]
[1757583177495,6.88,224.71,224.69,0.03295058]
[1757583177704,1.63173232,224.72,224.69,0.03295058]
[1757583178001,8.51173232,224.72,224.69,0.03295058]
[1757583179001,1.63173232,224.72,224.69,0.03295058]
[1757583179206,6.88,224.71,224.69,0.03295058]
[1757583179501,1.63173232,224.72,224.69,0.03295058]
[1757583179701,6.88,224.71,224.69,0.03295058]
[1757583180404,1.63173232,224.72,224.69,0.03295058]
[1757583180609,6.88,224.71,224.69,0.03295058]
[1757583181201,1.63173232,224.72,224.69,0.03295058]
[1757583181404,6.88,224.71,224.69,0.03295058]
[1757583181902,1.63173232,224.72,224.69,0.03295058]
[1757583182104,6.88,224.71,224.69,0.03295058]
[1757583182304,1.63173232,224.72,224.69,0.03295058]
[1757583182497,6.88,224.71,224.69,0.03295058]
[1757583183302,1.63173232,224.72,224.69,0.03295058]
[1757583183608,6.88,224.71,224.69,0.03295058]
[1757583184207,1.63173232,224.72,224.69,0.03295058]
[1757583184405,1.63173232,224.72,224.62,113.08]
[1757583184406,0.44,224.71,224.59,113.08]
[1757583184609,1.63173232,224.64,224.59,113.08]
[1757583184807,6.88,224.63,224.59,113.08]
[1757583185311,6.88,224.63,224.56,3.74059129]
[1757583185499,1.76,224.82,224.56,48.22]
[1757583185500,6.88,224.6,224.56,48.22]
[1757583185905,0.03305658,224.63,224.56,48.14]
[1757583186110,1.6647889,224.63,224.56,48.16851976]
[1757583188018,0.03305658,224.63,224.56,48.16851976]
[1757583188213,1.6647889,224.63,224.56,48.16851976]
[1757583188509,1.6647889,224.63,224.56,51.82911105]
[1757583190510,1.6647889,224.63,224.57,0.08]
[1757583201825,0.03305658,224.63,224.57,0.08]
[1757583203324,0.03305658,224.63,224.56,48.16851976]
[1757583203325,0.03305658,224.63,224.62,3.66458998]
[1757583203531,6.88,224.76,224.63,0.05]
[1757583203731,6.88,224.76,224.66,0.05]
[1757583204026,6.88,224.76,224.67,13.22]
[1757583205028,6.88,224.76,224.68,0.05]
[1757583205231,13.48073393,224.92,224.68,5.34043315]
[1757583205527,6.88,224.82,224.71,3.65870083]
[1757583205725,6.88,224.82,224.72,0.05]
[1757583208230,6.88,224.82,224.72,0.06]
[1757583208421,6.88,224.82,224.73,0.06]
[1757583208626,6.88,224.82,224.73,3.71870083]
[1757583209629,7.34,224.88,224.76,3.65870083]
[1757583209830,7.34,224.87,224.77,46.24]
[1757583210030,7.34,224.87,224.77,59.60298473]
[1757583214430,7.34,224.87,224.78,0.06]
[1757583216033,7.34,225.02,224.79,3.65870083]
[1757583216230,7.34,224.95,224.82,0.06]
[1757583216436,7.34,224.92,224.88,0.02910765]
[1757583216634,0.03078124,224.93,224.88,0.02910765]
[1757583217027,7.34,224.92,224.88,0.02910765]
[1757583217229,0.03078124,224.93,224.88,0.02910765]
[1757583217429,7.34,224.92,224.88,0.02910765]
[1757583217629,0.03078124,224.93,224.88,0.02910765]
[1757583218036,7.34,224.92,224.88,0.02910765]
[1757583219136,0.03078124,224.93,224.88,0.02910765]
[1757583219733,7.34,224.92,224.88,0.02910765]
[1757583219933,0.03078124,224.93,224.88,0.02910765]
[1757583220629,7.34,224.92,224.88,0.02910765]
[1757583221030,0.03078124,224.93,224.88,0.02910765]
[1757583221230,7.34,224.92,224.88,0.02910765]
[1757583221430,0.03078124,224.93,224.88,0.02910765]
[1757583221631,7.34,224.92,224.88,0.08910765]
[1757583221827,0.03078124,224.93,224.89,0.06]
[1757583222231,0.03078124,224.93,224.88,0.02910765]
[1757583222432,0.03078124,224.93,224.89,0.06]
[1757583222831,0.03078124,224.93,224.88,0.02910765]
[1757583223235,0.03078124,224.93,224.89,2.5455829]
[1757583223532,0.03078124,224.93,224.9,78.94]
[1757583223939,0.03078124,224.93,224.91,0.06]
[1757583224137,0.03078124,224.93,224.89,2.5455829]
[1757583224138,0.03078124,224.93,224.92,112.9]
[1757583224340,0.03078124,224.93,224.92,112.96]
[1757583224539,0.03078124,224.93,224.92,0.06]
[1757583224734,0.03078124,224.93,224.89,47.22]
[1757583224941,7.37078124,224.93,224.89,93.2]
[1757583225234,0.03078124,224.93,224.9,0.06]
[1757583229044,0.03078124,224.93,224.9,0.04]
[1757583230838,7.34,224.92,224.88,0.02910765]
[1757583231032,0.03078124,224.93,224.88,0.02910765]
[1757583231631,7.34,224.92,224.88,0.02910765]
[1757583231837,0.03078124,224.93,224.88,0.02910765]
[1757583232638,7.34,224.92,224.88,0.02910765]
[1757583233040,0.03078124,224.93,224.88,0.02910765]
[1757583234744,0.03078124,224.93,224.89,0.04]
[1757583234938,0.03078124,224.93,224.88,0.02910765]
[1757583235136,0.03078124,224.93,224.89,0.04]
[1757583235340,0.03078124,224.93,224.88,0.02910765]
[1757583236440,0.03078124,224.93,224.89,0.04]
[1757583236645,0.03078124,224.93,224.9,0.04]
[1757583237846,7.07,224.92,224.88,0.02910765]
[1757583238039,0.03078124,224.93,224.89,47.76]
[1757583238241,0.03078124,224.93,224.89,47.81]
[1757583238536,7.10078124,224.93,224.89,47.81]
[1757583238733,7.10078124,224.93,224.88,0.02910765]
[1757583238734,7.07,224.92,224.9,90.5]
[1757583239348,0.03078124,224.93,224.9,90.55]
[1757583239548,0.03078124,224.93,224.91,0.05]
[1757583240650,0.03078124,224.93,224.9,90.5]
[1757583241040,0.03078124,224.93,224.88,0.02910765]
[1757583241246,7.10078124,224.93,224.89,112.83]
[1757583241544,7.07,224.92,224.89,112.78]
[1757583242843,0.03078124,224.93,224.89,112.83]
[1757583243246,7.10078124,224.93,224.89,112.83]
[1757583243446,0.03078124,224.93,224.89,112.78]
[1757583243651,7.10078124,224.93,224.89,112.83]
[1757583244546,7.10078124,224.93,224.9,112.76]
[1757583245758,7.10078124,224.93,224.9,112.81]
[1757583245945,0.03078124,224.93,224.9,112.76]
[1757583246141,7.07,224.92,224.91,112.74]
[1757583246643,0.03078124,224.93,224.92,0.05]
[1757583247552,0.03078124,224.93,224.91,112.74]
[1757583247847,7.10078124,224.93,224.91,112.74]
[1757583248552,7.10078124,224.93,224.91,112.72]
[1757583248854,0.03078124,224.93,224.89,112.72]
[1757583249053,7.07,224.92,224.89,112.72]
[1757583249750,0.03078124,224.93,224.89,112.72]
[1757583249947,0.03078124,224.93,224.88,0.02910765]
[1757583250148,7.07,224.92,224.88,116.40780848]
[1757583250450,0.03078124,224.93,224.88,112.74910765]
[1757583250644,7.07,224.92,224.88,112.74910765]
[1757583250853,0.03078124,224.93,224.88,112.74910765]
[1757583251255,7.07,224.92,224.88,116.40780848]
[1757583251647,0.03078124,224.93,224.88,116.40780848]
[1757583252047,7.07,224.92,224.88,116.40780848]
[1757583252254,0.03078124,224.93,224.88,116.40780848]
[1757583252550,7.07,224.92,224.89,3.65870083]
[1757583254055,7.07,224.92,224.89,116.40870083]
[1757583254250,0.03078124,224.93,224.89,116.40870083]
[1757583254657,7.10078124,224.93,224.89,116.40870083]
[1757583255356,7.10078124,224.93,224.9,3.65870083]
[1757583256556,0.03078124,224.93,224.92,3.65870083]
[1757583256855,0.03078124,224.93,224.92,0.05]
[1757583260057,0.03078124,224.93,224.92,4.93078839]
[1757583261760,0.03078124,224.93,224.92,0.05]
[1757583263363,0.03078124,224.93,224.9,3.67986788]
[1757583263558,7.07,224.92,224.9,116.31986788]
[1757583263758,0.03078124,224.93,224.9,116.31986788]
[1757583263953,0.03078124,224.93,224.91,3.72986788]
[1757583264156,0.03078124,224.93,224.91,3.67986788]
[1757583264861,0.03078124,224.93,224.91,116.31986788]
[1757583265257,0.03078124,224.93,224.92,3.67986788]
[1757583266762,0.03078124,224.93,224.91,116.31986788]
[1757583267562,7.29078124,224.93,224.91,116.31986788]
[1757583267964,0.03078124,224.93,224.91,116.31986788]
[1757583268157,7.26,224.92,224.91,116.31986788]
[1757583268362,0.03078124,224.93,224.91,112.64]
[1757583268562,0.03078124,224.93,224.92,0.04]
[1757583268762,0.03078124,224.93,224.91,112.6]
[1757583271366,7.26,224.91,224.9,3.67986788]
[1757583271559,7.26,224.91,224.88,116.28897553]
[1757583271766,0.03078124,224.93,224.88,112.60910765]
[1757583271968,7.26,224.92,224.88,112.60910765]
[1757583272368,1.62870547,224.91,224.88,112.60910765]
[1757583272872,8.88870547,224.91,224.88,112.60910765]
[1757583273373,1.62870547,224.9,224.88,112.60910765]
[1757583275277,1.62870547,224.9,224.88,112.64910765]
[1757583275476,7.26,224.89,224.88,112.60910765]
[1757583275671,7.26,224.89,224.88,0.02910765]
[1757583276777,1.62870547,224.9,224.88,0.02910765]
[1757583276972,8.88870547,224.9,224.88,0.02910765]
[1757583277973,0.03078124,224.93,224.89,0.04]
[1757583278174,0.03078124,224.93,224.9,0.04]
[1757583280173,0.03078124,224.93,224.9,3.71986788]
[1757583280379,7.26,224.91,224.88,3.70897553]
[1757583280574,1.62870547,224.92,224.88,0.02910765]
[1757583280775,7.26,224.91,224.88,0.02910765]
[1757583280971,1.62870547,224.92,224.88,0.02910765]
[1757583281574,7.26,224.91,224.88,0.02910765]
[1757583281770,1.62870547,224.92,224.88,0.02910765]
[1757583282080,7.26,224.91,224.88,0.02910765]
[1757583282280,1.62870547,224.89,224.88,0.02910765]
[1757583282481,8.88870547,224.89,224.88,0.02910765]
[1757583282682,0.03078124,224.93,224.88,0.02910765]
[1757583282683,7.26,224.9,224.88,0.02910765]
[1757583282877,1.62870547,224.91,224.88,0.02910765]
[1757583283083,7.26,224.9,224.88,0.02910765]
[1757583283484,8.88870547,224.92,224.88,0.02910765]
[1757583283676,1.62870547,224.92,224.88,0.02910765]
[1757583283981,7.26,224.91,224.88,0.02910765]
[1757583284483,1.62870547,224.9,224.88,0.02910765]
[1757583285083,7.26,224.9,224.88,0.02910765]
[1757583286084,1.65948671,224.93,224.88,0.02910765]
[1757583286674,7.26,224.92,224.88,0.02910765]
[1757583286879,1.65948671,224.93,224.88,0.02910765]
[1757583287786,7.26,224.92,224.88,0.02910765]
[1757583288381,7.26,224.92,224.88,0.06910765]
[1757583288684,7.26,224.92,224.89,0.04]
[1757583289280,1.65948671,224.93,224.88,0.02910765]
[1757583290083,7.26,224.92,224.88,0.02910765]
[1757583290483,1.65948671,224.93,224.88,0.02910765]
[1757583290876,7.26,224.92,224.88,0.02910765]
[1757583291277,1.65948671,224.93,224.88,0.02910765]
[1757583292184,7.26,224.92,224.88,0.02910765]
[1757583292386,1.65948671,224.93,224.88,0.02910765]
[1757583292583,7.26,224.92,224.88,0.02910765]
[1757583292780,0.03078124,224.93,224.88,0.02910765]
[1757583292981,7.26,224.92,224.88,0.02910765]
[1757583293183,0.03078124,224.93,224.88,0.02910765]
[1757583293381,7.26,224.92,224.88,0.02910765]
[1757583293788,0.03078124,224.93,224.88,0.02910765]
[1757583293986,7.26,224.92,224.88,0.02910765]
[1757583294286,7.26,224.92,224.88,0.06910765]
[1757583295289,7.26,224.92,224.88,3.74897553]
[1757583297888,7.32,224.92,224.88,3.74897553]
[1757583298091,0.03078124,224.93,224.88,3.74897553]
[1757583298387,0.03078124,224.93,224.88,3.70897553]
[1757583298584,0.03078124,224.93,224.89,0.05]
[1757583298790,0.03078124,224.93,224.88,3.70897553]
[1757583298791,7.32,224.92,224.88,3.75897553]
[1757583298991,0.03078124,224.93,224.88,3.70897553]
[1757583299285,7.32,224.92,224.88,0.02910765]
[1757583299490,0.03078124,224.93,224.88,0.02910765]
[1757583299687,7.32,224.92,224.88,0.02910765]
[1757583299889,7.32,224.92,224.88,0.07910765]
[1757583300586,7.32,224.92,224.88,3.70897553]
[1757583300787,0.03078124,224.93,224.88,0.02910765]
[1757583301393,7.32,224.92,224.88,0.02910765]
[1757583301590,0.03078124,224.93,224.88,0.02910765]
[1757583302190,7.32,224.92,224.88,0.02910765]
[1757583302389,0.03078124,224.93,224.88,0.02910765]
[1757583303592,7.32,224.92,224.88,0.02910765]
[1757583304592,0.03078124,224.93,224.88,0.02910765]
[1757583304782,7.32,224.92,224.88,0.02910765]
[1757583305784,0.03078124,224.93,224.88,0.02910765]
[1757583306190,7.32,224.92,224.88,0.02910765]
[1757583306493,0.03078124,224.93,224.88,3.74897553]
[1757583306694,0.03078124,224.93,224.88,3.70897553]
[1757583307994,0.03078124,224.93,224.89,3.67986788]
[1757583308789,0.03078124,224.93,224.9,3.67986788]
[1757583315705,0.03078124,224.93,224.89,3.67986788]
[1757583320414,0.03078124,224.93,224.92,3.67986788]
[1757583324315,0.03078124,224.93,224.91,6.50949386]
[1757583324515,0.03078124,224.93,224.91,1.62870547]
[1757583325110,0.03078124,224.93,224.92,112.18]
[1757583325710,0.03078124,224.93,224.92,112.62]
[1757583325914,1.62870547,225.07,224.92,112.62]
[1757583326211,1.62870547,225.07,224.97,1.62870547]
[1757583327319,1.62870547,225.07,225.0,0.02872069]
[1757583329419,91.43435588,225.08,225.0,0.02872069]
[1757583329621,1.62870547,225.07,225.0,0.02872069]
[1757583330215,91.43435588,225.08,225.0,0.02872069]
[1757583330423,1.62870547,225.07,225.0,0.02872069]
[1757583332422,91.43435588,225.08,225.0,0.02872069]
[1757583333412,2.54209793,225.09,225.0,0.02872069]
[1757583334422,6.99,225.08,225.0,0.02872069]
[1757583337024,9.53209793,225.08,225.0,0.02872069]
[1757583337821,6.99,225.08,225.0,0.02872069]
[1757583338221,6.99,225.06,225.0,0.02872069]
[1757583342122,6.99,225.04,224.91,3.6780341]
[1757583342432,6.99,225.04,224.9,0.05]
[1757583342817,9.53209793,225.04,224.9,0.05]
[1757583343126,6.99,225.02,224.9,0.05]
[1757583343430,6.99,224.99,224.9,0.05]
[1757583345026,6.99,224.99,224.91,0.07]
[1757583346923,6.99,225.09,224.92,0.07]
[1757583347227,118.95,225.09,224.95,0.07]
[1757583348831,6.99,225.09,224.95,0.07]
[1757583350523,6.99,225.09,224.96,0.07]
[1757583353623,6.99,225.06,224.93,0.07]
[1757583353927,6.99,225.04,224.93,0.07]
[1757583354332,83.76,225.03,224.93,0.07]
[1757583354528,6.99,225.02,224.93,0.07]
[1757583355332,6.99,225.02,224.93,3.7480341]
[1757583356128,6.99,225.02,224.93,0.07]
[1757583359233,6.99,225.02,224.93,3.7480341]
[1757583360228,6.99,225.02,224.93,0.07]
[1757583360436,6.99,225.02,224.89,3.7580341]
[1757583360733,6.99,225.02,224.9,3.6780341]
[1757583364344,6.99,225.02,224.91,0.07]
[1757583365240,6.99,225.02,224.91,3.7480341]
[1757583366641,6.99,225.02,224.92,3.6780341]
[1757583367136,6.99,225.02,224.93,0.07]
[1757583367534,6.99,225.02,224.93,3.7480341]
[1757583368741,7.28,225.05,224.93,3.6780341]
[1757583369542,7.28,225.05,224.92,3.7480341]
[1757583371243,7.28,225.05,224.92,0.07]
[1757583371543,7.28,225.05,224.92,3.7480341]
[1757583372248,86.62,225.06,224.92,3.6780341]
[1757583372448,7.28,225.05,224.92,3.7480341]
[1757583375949,7.28,225.05,224.92,0.07]
[1757583376451,7.28,225.03,224.92,0.07]
[1757583377853,7.28,225.03,224.91,3.6780341]
[1757583378050,7.28,224.99,224.86,3.6780341]
[1757583379151,7.28,224.99,224.85,0.07]
[1757583380154,0.02802275,224.94,224.9,0.03377104]
[1757583380352,7.28,224.93,224.9,0.03377104]
[1757583381154,7.28,224.93,224.84,3.6780341]
[1757583381361,7.28,224.91,224.81,3.6780341]
[1757583381563,7.28,224.91,224.8,3.6780341]
[1757583382163,7.28,224.91,224.79,3.7480341]
[1757583382464,0.02981337,224.88,224.79,3.7480341]
[1757583382759,7.30981337,224.88,224.79,3.7480341]
[1757583383263,7.30981337,224.88,224.79,0.07]
[1757583384964,7.30981337,224.88,224.8,0.11]
[1757583385159,0.02981337,224.88,224.8,0.11]
[1757583386562,0.02981337,224.88,224.8,3.7880341]
[1757583386763,0.02981337,224.88,224.82,3.6780341]
[1757583387369,0.02981337,224.88,224.83,0.11]
[1757583387564,0.02981337,224.88,224.82,3.6780341]
[1757583387767,0.02981337,224.88,224.83,0.11]
[1757583387967,0.02981337,224.88,224.82,3.6780341]
[1757583388271,0.02981337,224.88,224.83,0.11]
[1757583388469,0.02981337,224.88,224.82,3.6780341]
[1757583388863,0.02981337,224.88,224.83,0.11]
[1757583389366,0.02981337,224.88,224.82,3.6780341]
[1757583389567,0.02981337,224.88,224.83,0.11]
[1757583389772,0.02981337,224.88,224.82,3.6780341]
[1757583390165,0.02981337,224.88,224.83,0.11]
[1757583390771,0.02981337,224.88,224.82,3.6780341]
[1757583390966,0.02981337,224.88,224.83,0.11]
[1757583391168,7.4,224.87,224.81,0.11]
[1757583392473,7.4,224.87,224.78,5.30743543]
[1757583393069,7.4,224.87,224.78,3.6780341]
[1757583393378,7.4,224.87,224.8,1.62940133]
[1757583393578,7.4,224.87,224.79,0.11]
[1757583393767,7.4,224.87,224.8,1.62940133]
[1757583393970,7.4,224.87,224.81,1.62940133]
[1757583394878,7.4,224.87,224.82,0.11]
[1757583395177,7.4,224.87,224.81,1.73940133]
[1757583397376,7.4,224.87,224.81,3.7880341]
[1757583397573,7.4,224.87,224.83,1.62940133]
[1757583398172,7.42981337,224.88,224.83,1.62940133]
[1757583398471,0.02981337,224.88,224.84,0.11]
[1757583398779,7.4,224.87,224.84,0.11]
[1757583400081,7.4,224.87,224.83,1.62940133]
[1757583400482,0.02981337,224.88,224.83,1.62940133]
[1757583400678,7.4,224.87,224.83,1.62940133]
[1757583400877,0.02981337,224.88,224.83,1.62940133]
[1757583401077,7.4,224.87,224.83,1.62940133]
[1757583401282,0.02981337,224.88,224.83,1.62940133]
[1757583401483,7.4,224.87,224.83,1.62940133]
[1757583402180,7.4,224.87,224.79,1.62940133]
[1757583402685,7.4,224.87,224.77,1.62940133]
[1757583402883,7.4,224.87,224.75,1.62940133]
[1757583402884,9.02940133,224.87,224.75,1.62940133]
[1757583403285,9.02940133,224.87,224.76,1.62940133]
[1757583403483,0.03220855,224.83,224.76,1.62940133]
[1757583403684,7.4,224.82,224.76,1.62940133]
[1757583406688,7.4,224.82,224.74,0.11]
[1757583406881,0.03220855,224.83,224.77,0.11]
[1757583407082,0.03220855,224.83,224.82,1.73940133]
[1757583408290,0.03220855,224.83,224.82,0.11]
[1757583408690,0.03220855,224.83,224.82,1.73940133]
[1757583410493,0.03220855,224.83,224.82,0.11]
[1757583412092,0.03220855,224.83,224.77,3.6780341]
[1757583412294,7.43220855,224.83,224.78,1.73940133]
[1757583412484,7.43220855,224.83,224.79,0.11]
[1757583414890,0.03220855,224.83,224.79,0.11]
[1757583415290,0.03220855,224.83,224.8,0.11]
[1757583415490,7.43220855,224.83,224.8,0.11]
[1757583417096,7.43220855,224.83,224.78,1.62940133]
[1757583417297,7.43220855,224.83,224.79,0.11]
[1757583419496,0.03220855,224.83,224.81,1.62940133]
[1757583419798,0.03220855,224.83,224.82,0.11]
[1757583421203,0.03220855,224.83,224.82,3.7880341]
[1757583421601,7.40220855,224.83,224.82,3.6780341]
[1757583421794,7.40220855,224.83,224.81,1.62940133]
[1757583421998,0.03220855,224.83,224.81,1.62940133]
[1757583422203,7.37,224.82,224.81,1.62940133]
[1757583422601,7.37,224.82,224.8,3.6780341]
[1757583424705,0.03220855,224.83,224.8,3.6780341]
[1757583424899,0.03220855,224.83,224.8,3.7880341]
[1757583425407,7.37,224.82,224.8,3.6780341]
[1757583426704,7.37,224.82,224.79,5.30743543]
[1757583428399,7.37,224.82,224.79,3.6780341]
[1757583430902,7.37,224.82,224.79,3.67904682]
[1757583433210,7.37,224.82,224.78,3.67904682]
[1757583433411,0.03220855,224.83,224.78,3.67904682]
[1757583433700,7.37,224.82,224.78,3.67904682]
[1757583433902,0.03220855,224.83,224.78,3.67904682]
[1757583434101,7.37,224.82,224.76,3.67904682]
[1757583434309,7.37,224.82,224.77,3.67904682]
[1757583434504,7.37,224.82,224.76,3.67904682]
[1757583435105,7.37,224.82,224.75,3.67904682]
[1757583436811,7.37,224.82,224.76,3.67904682]
[1757583437514,7.37,224.82,224.75,3.67904682]
[1757583440915,1.62940133,224.81,224.75,3.67904682]
[1757583441113,7.37,224.8,224.74,3.67904682]
[1757583441719,7.37,224.78,224.74,3.67904682]
[1757583442119,1.62940133,224.79,224.74,3.67904682]
[1757583442315,0.02876212,224.78,224.74,3.67904682]
[1757583442819,7.37,224.77,224.74,3.67904682]
[1757583443214,0.02876212,224.78,224.74,3.67904682]
[1757583443416,7.37,224.77,224.74,3.67904682]